fUST/lending_fUST_20250220
["ID","MTS","AMOUNT","RATE_DAILY","PERIOD"]
[353771032,1740028242214,-756.26,0.00014191,2]
[353771033,1740028242223,-1185.28,0.00014191,2]
[353771034,1740028242233,-849.04,0.00014191,2]
[353771035,1740028242242,-500.0,0.00014191,2]
[353771036,1740028242251,-500.0,0.00014191,2]
[353771037,1740028242263,-500.0,0.00014191,2]
[353771038,1740028242274,-772.08,0.00014191,2]
[353771039,1740028242283,-2441.26,0.00014191,2]
[353771040,1740028242292,-711.1,0.00014191,2]
[353771041,1740028242301,-581.23,0.00014191,2]
[353771042,1740028242311,-1218.96,0.00014191,2]
[353771043,1740028242319,-2647.31,0.00014191,2]
[353771044,1740028242329,-8964.39,0.00014191,2]
[353771045,1740028242338,-1335.75,0.00014191,2]
[353771046,1740028242347,-500.0,0.00014191,2]
[353771047,1740028242358,-818.7,0.00014191,2]
[353771048,1740028242367,-715.83,0.00014191,2]
[353771049,1740028242376,-500.0,0.00014191,2]
[353771050,1740028242385,-500.0,0.00014191,2]
[353771051,1740028242394,-151.0,0.000142,2]
[353771052,1740028242403,-151.0,0.000142,2]
[353771053,1740028242412,-355.163177,0.000142,2]
[353771054,1740028242421,-500.0,0.00014208,2]
[353771055,1740028242431,-1086.7624726,0.00014209,2]
[353771056,1740028242439,-500.0,0.00014272,2]
[353771057,1740028242450,-500.0,0.00014273,2]
[353771058,1740028242460,-500.0,0.00014273,2]
[353771059,1740028242470,-500.0,0.00014273,2]
[353771060,1740028242479,-756.26,0.00014273,2]
[353771061,1740028242489,-1185.28,0.00014273,2]
[353771062,1740028242499,-849.04,0.00014273,2]
[353771063,1740028242508,-500.0,0.00014273,2]
[353771064,1740028242517,-500.0,0.00014273,2]
[353771065,1740028242526,-500.0,0.00014273,2]
[353771066,1740028242536,-772.08,0.00014273,2]
[353771067,1740028242545,-2441.26,0.00014273,2]
[353771068,1740028242554,-711.1,0.00014273,2]
[353771069,1740028242563,-581.23,0.00014273,2]
[353771070,1740028242572,-1218.96,0.00014273,2]
[353771071,1740028242583,-2647.31,0.00014273,2]
[353771072,1740028242592,-8964.39,0.00014273,2]
[353771073,1740028242601,-1335.75,0.00014273,2]
[353771074,1740028242611,-500.0,0.00014273,2]
[353771075,1740028242620,-818.7,0.00014273,2]
[353771076,1740028242630,-715.83,0.00014273,2]
[353771077,1740028242639,-500.0,0.00014273,2]
[353771078,1740028242649,-500.0,0.00014273,2]
[353771079,1740028242659,-151.0,0.000143,2]
[353771080,1740028242668,-500.0,0.00014355,2]
[353771081,1740028242679,-500.0,0.00014356,2]
[353771082,1740028242688,-500.0,0.00014356,2]
[353771083,1740028242697,-391.63,0.00014356,2]
[353771084,1740028242708,-756.26,0.00014356,2]
[353771085,1740028242717,-1185.28,0.00014356,2]
[353771086,1740028242726,-849.04,0.00014356,2]
[353771087,1740028242736,-500.0,0.00014356,2]
[353771088,1740028242745,-500.0,0.00014356,2]
[353771089,1740028242755,-500.0,0.00014356,2]
[353771090,1740028242880,-772.08,0.00014356,2]
[353771091,1740028242893,-2441.26,0.00014356,2]
[353771092,1740028242903,-711.1,0.00014356,2]
[353771093,1740028242913,-581.23,0.00014356,2]
[353771094,1740028242923,-1218.96,0.00014356,2]
[353771095,1740028242932,-2647.31,0.00014356,2]
[353771097,1740028242942,-8964.39,0.00014356,2]
[353771098,1740028242951,-1335.75,0.00014356,2]
[353771099,1740028242961,-500.0,0.00014356,2]
[353771100,1740028242970,-818.7,0.00014356,2]
[353771101,1740028242980,-715.83,0.00014356,2]
[353771102,1740028242989,-500.0,0.00014356,2]
[353771103,1740028242999,-500.0,0.00014356,2]
[353771104,1740028243007,-3000.0,0.00014365,2]
[353771105,1740028243017,-500.0,0.0001438,2]
[353771106,1740028243028,-200.3486033,0.00014399,2]
[353771107,1740028243038,-500.0,0.00014399,2]
[353771108,1740028243048,-500.0,0.00014399,2]
[353771109,1740028243058,-34259.0,0.000144,2]
[353771110,1740028243067,-151.0,0.000144,2]
[353771111,1740028243077,-151.0,0.000144,2]
[353771112,1740028243086,-4660.08902478,0.000144,2]
[353771113,1740028243096,-150.55467705,0.000144,2]
[353771114,1740028243105,-150.55467705,0.000144,2]
[353771115,1740028243114,-150.55467705,0.000144,2]
[353771116,1740028243124,-150.55467705,0.000144,2]
[353771117,1740028243133,-150.55467705,0.000144,2]
[353771118,1740028243142,-150.55467705,0.000144,2]
[353771119,1740028243152,-150.55467705,0.000144,2]
[353771120,1740028243162,-150.55467705,0.000144,2]
[353771121,1740028243171,-150.55467705,0.000144,2]
[353771122,1740028243181,-150.55467705,0.000144,2]
[353771123,1740028243191,-150.55467705,0.000144,2]
[353771124,1740028243200,-150.55467705,0.000144,2]
[353771125,1740028243209,-150.55467705,0.000144,2]
[353771126,1740028243219,-150.55467705,0.000144,2]
[353771127,1740028243228,-150.55467705,0.000144,2]
[353771128,1740028243237,-150.55467705,0.000144,2]
[353771129,1740028243247,-150.55467705,0.000144,2]
[353771130,1740028243257,-150.55467705,0.000144,2]
[353771131,1740028243266,-150.55467705,0.000144,2]
[353771132,1740028243278,-150.55,0.000144,2]
[353771133,1740028243288,-351.29424644,0.000144,2]
[353771134,1740028243298,-351.29424644,0.000144,2]
[353771135,1740028243308,-351.29424644,0.000144,2]
[353771136,1740028243319,-351.29424644,0.000144,2]
[353771137,1740028243328,-351.29424644,0.000144,2]
[353771138,1740028243338,-351.29424644,0.000144,2]
[353771139,1740028243348,-351.29424644,0.000144,2]
[353771140,1740028243358,-351.29424644,0.000144,2]
[353771141,1740028243368,-351.29424644,0.000144,2]
[353771142,1740028243378,-351.29424644,0.000144,2]
[353771143,1740028243387,-351.29424644,0.000144,2]
[353771144,1740028243397,-351.29424644,0.000144,2]
[353771145,1740028243408,-351.29424644,0.000144,2]
[353771146,1740028243419,-351.29424644,0.000144,2]
[353771147,1740028243429,-351.29424644,0.000144,2]
[353771148,1740028243439,-351.29424644,0.000144,2]
[353771149,1740028243448,-351.29424644,0.000144,2]
[353771150,1740028243458,-351.29424644,0.000144,2]
[353771151,1740028243468,-351.29424644,0.000144,2]
[353771152,1740028243478,-351.29,0.000144,2]
[353771153,1740028243487,-183.40477447,0.000144,2]
[353771154,1740028243498,-183.4,0.000144,2]
[353771155,1740028243507,-171.1777895,0.000144,2]
[353771156,1740028243517,-171.1777895,0.000144,2]
[353771157,1740028243526,-171.1777895,0.000144,2]
[353771158,1740028243536,-171.1777895,0.000144,2]
[353771159,1740028243545,-171.17,0.000144,2]
[353771160,1740028243555,-198.95450776,0.00014403,2]
[353771161,1740028243565,-500.0,0.00014437,2]
[353771162,1740028243575,-512.78,0.00014437,2]
[353771163,1740028243584,-500.0,0.00014438,2]
[353771164,1740028243595,-500.0,0.00014438,2]
[353771165,1740028243604,-756.26,0.00014438,2]
[353771167,1740028243614,-1185.28,0.00014438,2]
[353771171,1740028243623,-849.04,0.00014438,2]
[353771174,1740028243632,-500.0,0.00014438,2]
[353771178,1740028243642,-500.0,0.00014438,2]
[353771180,1740028243651,-500.0,0.00014438,2]
[353771182,1740028243660,-772.08,0.00014438,2]
[353771183,1740028243671,-2441.26,0.00014438,2]
[353771184,1740028243680,-711.1,0.00014438,2]
[353771185,1740028243690,-581.23,0.00014438,2]
[353771186,1740028243699,-1218.96,0.00014438,2]
[353771187,1740028243709,-2647.31,0.00014438,2]
[353771188,1740028243718,-8964.39,0.00014438,2]
[353771189,1740028243727,-1335.75,0.00014438,2]
[353771190,1740028243737,-500.0,0.00014438,2]
[353771191,1740028243747,-818.7,0.00014438,2]
[353771192,1740028243757,-715.83,0.00014438,2]
[353771193,1740028243766,-500.0,0.00014438,2]
[353771194,1740028243776,-500.0,0.00014438,2]
[353771195,1740028243786,-800.0,0.00014438,2]
[353771196,1740028243795,-188.0,0.00014466,2]
[353771197,1740028243805,-188.0,0.00014466,2]
[353771198,1740028243814,-188.0,0.00014466,2]
[353771199,1740028243823,-188.0,0.00014466,2]
[353771200,1740028243833,-188.0,0.00014466,2]
[353771201,1740028243842,-188.0,0.00014466,2]
[353771202,1740028243852,-153.0,0.00014466,2]
[353771203,1740028243861,-153.0,0.00014466,2]
[353771204,1740028243871,-153.0,0.00014466,2]
[353771205,1740028243880,-153.0,0.00014466,2]
[353771206,1740028243890,-153.0,0.00014466,2]
[353771207,1740028243899,-169.0,0.00014466,2]
[353771208,1740028243908,-169.0,0.00014466,2]
[353771209,1740028243918,-169.0,0.00014466,2]
[353771210,1740028243927,-169.0,0.00014466,2]
[353771211,1740028243937,-169.0,0.00014466,2]
[353771212,1740028243946,-169.0,0.00014466,2]
[353771213,1740028243957,-169.0,0.00014466,2]
[353771214,1740028243967,-169.0,0.00014466,2]
[353771215,1740028243978,-169.0,0.00014466,2]
[353771216,1740028243987,-169.0,0.00014466,2]
[353771217,1740028243997,-169.0,0.00014466,2]
[353771218,1740028244007,-153.0,0.00014466,2]
[353771219,1740028244017,-153.0,0.00014466,2]
[353771220,1740028244026,-153.0,0.00014466,2]
[353771221,1740028244035,-153.0,0.00014466,2]
[353771222,1740028244044,-153.0,0.00014466,2]
[353771223,1740028244053,-153.0,0.00014466,2]
[353771224,1740028244063,-153.0,0.00014466,2]
[353771225,1740028244072,-153.0,0.00014466,2]
[353771226,1740028244081,-153.0,0.00014466,2]
[353771227,1740028244091,-153.0,0.00014466,2]
[353771228,1740028244100,-153.0,0.00014466,2]
[353771229,1740028244109,-153.0,0.00014466,2]
[353771230,1740028244119,-153.0,0.00014466,2]
[353771231,1740028244129,-153.0,0.00014466,2]
[353771232,1740028244138,-153.0,0.00014466,2]
[353771233,1740028244147,-153.0,0.00014466,2]
[353771234,1740028244155,-153.0,0.00014466,2]
[353771235,1740028244163,-153.0,0.00014466,2]
[353771236,1740028244172,-153.0,0.00014466,2]
[353771237,1740028244180,-153.0,0.00014466,2]
[353771238,1740028244187,-153.0,0.00014466,2]
[353771239,1740028244195,-153.0,0.00014466,2]
[353771240,1740028244203,-153.0,0.00014466,2]
[353771241,1740028244212,-153.0,0.00014466,2]
[353771242,1740028244221,-153.0,0.00014466,2]
[353771243,1740028244229,-153.0,0.00014466,2]
[353771244,1740028244237,-153.0,0.00014466,2]
[353771245,1740028244245,-153.0,0.00014466,2]
[353771246,1740028244254,-153.0,0.00014466,2]
[353771247,1740028244265,-153.0,0.00014466,2]
[353771248,1740028244278,-153.0,0.00014466,2]
[353771249,1740028244287,-153.0,0.00014466,2]
[353771250,1740028244296,-153.0,0.00014466,2]
[353771251,1740028244306,-153.0,0.00014466,2]
[353771252,1740028244315,-153.0,0.00014466,2]
[353771253,1740028244324,-153.0,0.00014466,2]
[353771254,1740028244333,-153.0,0.00014466,2]
[353771255,1740028244344,-153.0,0.00014466,2]
[353771256,1740028244353,-153.0,0.00014466,2]
[353771257,1740028244363,-153.0,0.00014466,2]
[353771258,1740028244372,-153.0,0.00014466,2]
[353771259,1740028244384,-153.0,0.00014466,2]
[353771260,1740028244400,-153.0,0.00014466,2]
[353771261,1740028244413,-153.0,0.00014466,2]
[353771262,1740028244424,-153.0,0.00014466,2]
[353771263,1740028244433,-153.0,0.00014466,2]
[353771264,1740028244443,-153.0,0.00014466,2]
[353771265,1740028244452,-153.0,0.00014466,2]
[353771266,1740028244462,-153.0,0.00014466,2]
[353771267,1740028244472,-153.0,0.00014466,2]
[353771268,1740028244481,-153.0,0.00014466,2]
[353771269,1740028244491,-153.0,0.00014466,2]
[353771270,1740028244500,-153.0,0.00014466,2]
[353771271,1740028244509,-153.0,0.00014466,2]
[353771272,1740028244519,-153.0,0.00014466,2]
[353771273,1740028244529,-153.0,0.00014466,2]
[353771274,1740028244539,-153.0,0.00014466,2]
[353771275,1740028244548,-153.0,0.00014466,2]
[353771276,1740028244558,-153.0,0.00014466,2]
[353771277,1740028244567,-153.0,0.00014466,2]
[353771278,1740028244577,-153.0,0.00014466,2]
[353771279,1740028244587,-153.0,0.00014466,2]
[353771280,1740028244597,-153.0,0.00014466,2]
[353771281,1740028244607,-153.0,0.00014466,2]
[353771282,1740028244618,-153.0,0.00014466,2]
[353771283,1740028244628,-153.0,0.00014466,2]
[353771284,1740028244637,-153.0,0.00014466,2]
[353771285,1740028244647,-153.0,0.00014466,2]
[353771286,1740028244657,-153.0,0.00014466,2]
[353771287,1740028244668,-153.0,0.00014466,2]
[353771288,1740028244678,-153.0,0.00014466,2]
[353771289,1740028244687,-153.0,0.00014466,2]
[353771290,1740028244697,-153.0,0.00014466,2]
[353771291,1740028244706,-153.0,0.00014466,2]
[353771292,1740028244715,-153.0,0.00014466,2]
[353771293,1740028244725,-153.0,0.00014466,2]
[353771294,1740028244736,-153.0,0.00014466,2]
[353771295,1740028244746,-153.0,0.00014466,2]
[353771296,1740028244756,-153.0,0.00014466,2]
[353771297,1740028244765,-153.0,0.00014466,2]
[353771298,1740028244775,-153.0,0.00014466,2]
[353771299,1740028244784,-153.0,0.00014466,2]
[353771300,1740028244793,-153.0,0.00014466,2]
[353771301,1740028244802,-153.0,0.00014466,2]
[353771302,1740028244812,-153.0,0.00014466,2]
[353771303,1740028244822,-153.0,0.00014466,2]
[353771304,1740028244831,-153.0,0.00014466,2]
[353771305,1740028244841,-153.0,0.00014466,2]
[353771306,1740028244851,-153.0,0.00014466,2]
[353771307,1740028244861,-153.0,0.00014466,2]
[353771308,1740028244870,-153.0,0.00014466,2]
[353771309,1740028244880,-153.0,0.00014466,2]
[353771310,1740028244890,-153.0,0.00014466,2]
[353771311,1740028244900,-153.0,0.00014466,2]
[353771312,1740028244909,-153.0,0.00014466,2]
[353771313,1740028244920,-153.0,0.00014466,2]
[353771314,1740028244929,-153.0,0.00014466,2]
[353771315,1740028244939,-153.0,0.00014466,2]
[353771316,1740028244949,-153.0,0.00014466,2]
[353771317,1740028244959,-153.0,0.00014466,2]
[353771318,1740028244968,-153.0,0.00014466,2]
[353771319,1740028244978,-153.0,0.00014466,2]
[353771320,1740028244988,-153.0,0.00014466,2]
[353771321,1740028244998,-153.0,0.00014466,2]
[353771322,1740028245008,-153.0,0.00014466,2]
[353771323,1740028245019,-153.0,0.00014466,2]
[353771324,1740028245029,-153.0,0.00014466,2]
[353771325,1740028245039,-153.0,0.00014466,2]
[353771326,1740028245050,-153.0,0.00014466,2]
[353771327,1740028245060,-153.0,0.00014466,2]
[353771328,1740028245070,-153.0,0.00014466,2]
[353771329,1740028245081,-153.0,0.00014466,2]
[353771330,1740028245092,-153.0,0.00014466,2]
[353771331,1740028245103,-153.0,0.00014466,2]
[353771332,1740028245114,-153.0,0.00014466,2]
[353771333,1740028245124,-153.0,0.00014466,2]
[353771334,1740028245134,-153.0,0.00014466,2]
[353771335,1740028245146,-153.0,0.00014466,2]
[353771336,1740028245159,-153.0,0.00014466,2]
[353771337,1740028245175,-153.0,0.00014466,2]
[353771338,1740028245185,-153.0,0.00014466,2]
[353771339,1740028245194,-153.0,0.00014466,2]
[353771340,1740028245204,-153.0,0.00014466,2]
[353771341,1740028245213,-153.0,0.00014466,2]
[353771342,1740028245224,-138.0491744,0.00014466,2]
[353771343,1740028245313,-14.9508256,0.00014466,2]
[353771344,1740028245324,-153.0,0.00014466,2]
[353771345,1740028245334,-153.0,0.00014466,2]
[353771346,1740028245344,-153.0,0.00014466,2]
[353771347,1740028245355,-153.0,0.00014466,2]
[353771348,1740028245367,-153.0,0.00014466,2]
[353771349,1740028245377,-25.13769249,0.00014466,2]
[353771350,1740028245390,-127.86230751,0.00014466,2]
[353771351,1740028245400,-153.0,0.00014466,2]
[353771352,1740028245410,-153.0,0.00014466,2]
[353771353,1740028245424,-153.0,0.00014466,2]
[353771354,1740028245434,-153.0,0.00014466,2]
[353771355,1740028245444,-153.0,0.00014466,2]
[353771356,1740028245454,-8.9282208,0.00014466,2]
[353771357,1740028245467,-144.0717792,0.00014466,2]
[353771358,1740028245478,-153.0,0.00014466,2]
[353771359,1740028245488,-153.0,0.00014466,2]
[353771360,1740028245498,-153.0,0.00014466,2]
[353771361,1740028245509,-153.0,0.00014466,2]
[353771362,1740028245518,-153.0,0.00014466,2]
[353771363,1740028245528,-153.0,0.00014466,2]
[353771364,1740028245538,-153.0,0.00014466,2]
[353771365,1740028245547,-153.0,0.00014466,2]
[353771366,1740028245558,-153.0,0.00014466,2]
[353771367,1740028245567,-153.0,0.00014466,2]
[353771368,1740028245577,-153.0,0.00014466,2]
[353771369,1740028245588,-153.0,0.00014466,2]
[353771370,1740028245597,-153.0,0.00014466,2]
[353771371,1740028245607,-153.0,0.00014466,2]
[353771372,1740028245617,-153.0,0.00014466,2]
[353771373,1740028245626,-153.0,0.00014466,2]
[353771374,1740028245636,-153.0,0.00014466,2]
[353771375,1740028245646,-153.0,0.00014466,2]
[353771376,1740028245655,-153.0,0.00014466,2]
[353771377,1740028245665,-153.0,0.00014466,2]
[353771378,1740028245676,-153.0,0.00014466,2]
[353771379,1740028245686,-153.0,0.00014466,2]
[353771380,1740028245697,-153.0,0.00014466,2]
[353771381,1740028245707,-153.0,0.00014466,2]
[353771382,1740028245717,-153.0,0.00014466,2]
[353771383,1740028245727,-153.0,0.00014466,2]
[353771384,1740028245737,-153.0,0.00014466,2]
[353771385,1740028245747,-153.0,0.00014466,2]
[353771386,1740028245756,-153.0,0.00014466,2]
[353771387,1740028245767,-153.0,0.00014466,2]
[353771388,1740028245776,-153.0,0.00014466,2]
[353771389,1740028245786,-153.0,0.00014466,2]
[353771390,1740028245796,-153.0,0.00014466,2]
[353771392,1740028245806,-153.0,0.00014466,2]
[353771395,1740028245815,-153.0,0.00014466,2]
[353771397,1740028245825,-153.0,0.00014466,2]
[353771399,1740028245834,-153.0,0.00014466,2]
[353771401,1740028245844,-153.0,0.00014466,2]
[353771403,1740028245854,-153.0,0.00014466,2]
[353771404,1740028245865,-153.0,0.00014466,2]
[353771405,1740028245881,-500.0,0.00014473,2]
[353771406,1740028245998,-500.0,0.00014473,2]
[353771407,1740028246008,-500.0,0.00014473,2]
[353771408,1740028246019,-500.0,0.00014473,2]
[353771409,1740028246028,-500.0,0.00014473,2]
[353771410,1740028246037,-500.0,0.00014473,2]
[353771411,1740028246047,-500.0,0.00014473,2]
[353771412,1740028246056,-500.0,0.00014473,2]
[353771413,1740028246066,-153.0,0.00014478,2]
[353771414,1740028246075,-412.52393781,0.00014498,2]
[353771415,1740028246086,-82206.70947415,0.00014499,5]
[353771417,1740028246141,-163.72924038,0.00013698,2]
[353771419,1740028246151,-557.57001004,0.00014209,2]
[353771421,1740028246169,-741.32642241,0.00014209,2]
[353771427,1740028726295,267.025499,9.041e-05,2]
[353771438,1740029309559,1064.15054927,0.00018124,90]
[353771444,1740029345127,-277.01425039,0.0001,2]
[353771445,1740029345147,-1000.0,0.0001,2]
[353771446,1740029345167,-479.45551049,0.00010959,2]
[353771465,1740029432587,-800.0,0.00013068,2]
[353771466,1740029432597,-198.95450776,0.0001369,2]
[353771467,1740029432606,-263.58408996,0.00013697,2]
[353771468,1740029432646,-36.41591004,0.00013697,2]
[353771469,1740029432656,-504.32029485,0.00013698,2]
[353771470,1740029432665,-502.90584212,0.00013698,2]
[353771471,1740029432674,-500.0,0.00013698,2]
[353771472,1740029432686,-500.0,0.00013698,2]
[353771473,1740029432695,-501.93599235,0.00013698,2]
[353771474,1740029432705,-503.51119469,0.00013698,2]
[353771475,1740029432715,-500.0,0.00013698,2]
[353771476,1740029432726,-511.07091318,0.00013698,2]
[353771477,1740029432735,-505.63379447,0.00013698,2]
[353771478,1740029432746,-520.86511227,0.00013698,2]
[353771479,1740029432755,-500.0,0.00013698,2]
[353771480,1740029432764,-500.0,0.00013698,2]
[353771481,1740029432774,-500.0,0.00013698,2]
[353771482,1740029432783,-500.0,0.00013698,2]
[353771483,1740029432792,-500.0,0.00013698,2]
[353771484,1740029432802,-500.0,0.00013698,2]
[353771485,1740029432811,-377.6104768,0.00013698,2]
[353771486,1740029432821,-500.0,0.00013698,2]
[353771487,1740029432831,-500.0,0.00013698,2]
[353771488,1740029432841,-445.57634026,0.00013698,2]
[353771489,1740029432853,-54.42365974,0.00013698,2]
[353771490,1740029432868,-500.0,0.00013698,2]
[353771491,1740029432877,-64.23961756,0.00013698,2]
[353771492,1740029432890,-435.76038244,0.00013698,2]
[353771493,1740029432900,-89.29052061,0.00013698,2]
[353771496,1740029438399,-547.12947939,0.00013698,2]
[353771497,1740029438410,-500.0,0.00013698,2]
[353771498,1740029438420,-500.0,0.00013698,2]
[353771499,1740029438430,-500.0,0.00013698,2]
[353771500,1740029438441,-500.0,0.00013698,2]
[353771501,1740029438451,-518.47262479,0.00013698,2]
[353771502,1740029438461,-500.0,0.00013698,2]
[353771503,1740029438471,-500.0,0.00013698,2]
[353771504,1740029438481,-463.51228679,0.00013698,2]
[353771505,1740029438491,-567.38,0.00013698,2]
[353771506,1740029438500,-623.59,0.00013698,2]
[353771507,1740029438510,-503.19341236,0.00013698,2]
[353771508,1740029438519,-502.2314325,0.00013698,2]
[353771509,1740029438529,-502.07186726,0.00013698,2]
[353771510,1740029438539,-500.0,0.00013698,2]
[353771511,1740029438548,-510.03775686,0.00013698,2]
[353771512,1740029438558,-518.28,0.00013698,2]
[353771513,1740029438568,-500.0,0.00013698,2]
[353771514,1740029438578,-500.0,0.00013698,2]
[353771515,1740029438587,-500.0,0.00013698,2]
[353771516,1740029438598,-500.0,0.00013698,2]
[353771517,1740029438608,-500.0,0.00013698,2]
[353771518,1740029438618,-655.53,0.00013698,2]
[353771519,1740029438628,-500.0,0.00013698,2]
[353771520,1740029438642,-500.0,0.00013698,2]
[353771521,1740029438652,-1015.9,0.00013698,2]
[353771522,1740029438662,-500.0,0.00013698,2]
[353771523,1740029438671,-500.0,0.00013698,2]
[353771524,1740029438681,-500.0,0.00013698,2]
[353771525,1740029438692,-1609.95,0.00013698,2]
[353771526,1740029438702,-500.0,0.00013698,2]
[353771527,1740029438711,-1029.09,0.00013698,2]
[353771528,1740029438721,-500.0,0.00013698,2]
[353771529,1740029438731,-510.2,0.00013698,2]
[353771530,1740029438741,-500.0,0.00013698,2]
[353771531,1740029438751,-547.58769956,0.00013698,2]
[353771532,1740029438760,-500.0,0.00013698,2]
[353771533,1740029438770,-500.0,0.00013698,2]
[353771534,1740029438780,-500.0,0.00013698,2]
[353771535,1740029438789,-500.0,0.00013698,2]
[353771536,1740029438799,-500.0,0.00013698,2]
[353771537,1740029438809,-500.0,0.00013698,2]
[353771538,1740029438818,-500.0,0.00013698,2]
[353771539,1740029438829,-500.0,0.00013698,2]
[353771540,1740029438839,-500.0,0.00013698,2]
[353771541,1740029438848,-2890.40721296,0.00013698,2]
[353771542,1740029438863,-143.58278704,0.00013698,2]
[353771543,1740029438872,-500.0,0.00013698,2]
[353771544,1740029438882,-500.0,0.00013698,2]
[353771545,1740029438892,-511.57652539,0.00013698,2]
[353771546,1740029438902,-922.75,0.00013698,2]
[353771547,1740029438912,-500.0,0.00013698,2]
[353771548,1740029438921,-533.64,0.00013698,2]
[353771549,1740029438932,-698.76,0.00013698,2]
[353771550,1740029438944,-850.1,0.00013698,2]
[353771551,1740029438954,-500.0,0.00013698,2]
[353771552,1740029438963,-500.0,0.00013698,2]
[353771553,1740029438973,-500.0,0.00013698,2]
[353771554,1740029438983,-500.0,0.00013698,2]
[353771555,1740029438993,-500.0,0.00013698,2]
[353771556,1740029439003,-500.0,0.00013698,2]
[353771557,1740029439012,-314.68783606,0.00013698,2]
[353771558,1740029439033,-185.31216394,0.00013698,2]
[353771559,1740029439042,-500.0,0.00013698,2]
[353771560,1740029439052,-278.0,0.00013698,2]
[353771561,1740029439061,-275.43249213,0.00013698,2]
[353771562,1740029439073,-2686.46750787,0.00013698,2]
[353771563,1740029439083,-500.0,0.00013698,2]
[353771564,1740029439098,-1430.26,0.00013698,2]
[353771565,1740029439108,-500.0,0.00013698,2]
[353771566,1740029439119,-171.82,0.00013698,2]
[353771567,1740029439128,-10336.12,0.00013698,2]
[353771568,1740029439138,-511.68,0.00013698,2]
[353771569,1740029439147,-1581.32,0.00013698,2]
[353771570,1740029439157,-500.0,0.00013698,2]
[353771571,1740029439166,-500.0,0.00013698,2]
[353771572,1740029439176,-805.98,0.00013698,2]
[353771573,1740029439187,-500.0,0.00013698,2]
[353771574,1740029439197,-778.91,0.00013698,2]
[353771575,1740029439206,-500.0,0.00013698,2]
[353771576,1740029439218,-492.64318538,0.00013698,2]
[353771577,1740029439230,-7.35681462,0.00013698,2]
[353771578,1740029439240,-179.71246006,0.00013699,2]
[353771579,1740029439249,-500.0,0.00013779,2]
[353771580,1740029439259,-500.0,0.00013779,2]
[353771581,1740029439268,-625.3,0.00013779,2]
[353771582,1740029439278,-500.0,0.00013779,2]
[353771583,1740029439288,-500.0,0.00013779,2]
[353771584,1740029439297,-500.0,0.00013779,2]
[353771585,1740029439306,-500.0,0.00013779,2]
[353771586,1740029439316,-500.0,0.00013779,2]
[353771587,1740029439325,-500.0,0.00013779,2]
[353771588,1740029439335,-500.0,0.00013779,2]
[353771589,1740029439344,-500.0,0.00013779,2]
[353771590,1740029439353,-500.0,0.0001378,2]
[353771591,1740029439362,-500.0,0.0001378,2]
[353771592,1740029439371,-500.0,0.0001378,2]
[353771593,1740029439381,-500.0,0.0001378,2]